bitfinex/quotes_SOLUSD_20241126
["timestamp","ask_amount","ask_price","bid_price","bid_amount"]
[1732596595597,0.25098,238.02,238.0,8.15478725]
[1732596597606,0.25098,238.02,238.0,12.35628725]
[1732596600639,0.25098,238.02,238.01,8.15478725]
[1732596601511,0.25098,238.02,238.0,8.15478725]
[1732596602018,0.25098,238.02,238.0,12.35638725]
[1732596602821,0.25098,238.02,238.01,8.15478725]
[1732596604510,0.25098,238.02,238.01,12.35628725]
[1732596606528,0.25098,238.02,237.97,15.5114]
[1732596606734,0.25098,238.02,238.01,8.15478725]
[1732596607741,0.25098,238.02,237.97,15.5114]
[1732596607923,0.12549,238.03,237.97,8.15478725]
[1732596608115,8.28027725,238.03,237.92,4.203]
[1732596608314,23.776884,238.0,237.92,12.35778725]
[1732596608528,23.776884,237.98,237.88,4.2038]
[1732596608722,0.12549,237.97,237.9,8.15478725]
[1732596609635,0.12549,237.95,237.89,8.15478725]
[1732596610639,23.776884,237.94,237.87,8.15478725]
[1732596610843,23.776884,237.94,237.89,8.15478725]
[1732596610844,0.12549,237.93,237.89,8.15478725]
[1732596611024,0.12549,237.94,237.87,8.15478725]
[1732596611540,0.25098,237.94,237.87,8.15478725]
[1732596612738,0.12549,237.92,237.87,8.15478725]
[1732596613053,0.25098,237.92,237.87,8.15478725]
[1732596613843,0.25098,237.92,237.81,4.205]
[1732596614034,4.45408,237.92,237.81,4.205]
[1732596614219,31.93167125,237.91,237.84,8.15478725]
[1732596614538,0.12549,237.9,237.84,8.15478725]
[1732596615333,0.25098,237.9,237.84,8.15478725]
[1732596617334,0.25098,237.9,237.83,4.2045]
[1732596617335,8.40576725,237.86,237.79,8.15478725]
[1732596617534,0.25098,237.84,237.78,8.15478725]
[1732596619531,0.25098,237.84,237.77,8.15478725]
[1732596619827,0.25098,237.84,237.76,4.2059]
[1732596620034,0.25098,237.84,237.81,8.15478725]
[1732596620249,0.25098,237.84,237.8,8.15478725]
[1732596620634,0.12549,237.84,237.8,8.15478725]
[1732596621036,23.902374,237.87,237.81,8.15478725]
[1732596621252,23.902374,237.87,237.82,8.15478725]
[1732596621627,0.12549,237.85,237.82,8.15478725]
[1732596623449,4.94098942,237.9,237.84,8.15478725]
[1732596623643,4.94098942,237.9,237.86,8.15478725]
[1732596624228,5.61891968,237.98,237.88,8.15478725]
[1732596624229,0.12549,237.91,237.88,8.15478725]
[1732596624450,9.14348942,237.96,237.9,8.15478725]
[1732596625331,0.12549,237.95,237.9,8.15478725]
[1732596625542,4.94098942,237.96,237.9,8.15478725]
[1732596625744,15.6066,237.99,237.93,8.15478725]
[1732596625939,15.6066,237.99,237.96,8.15478725]
[1732596626245,9.14238942,238.02,237.96,8.15478725]
[1732596627433,0.12549,238.01,237.96,8.15478725]
[1732596628044,15.6066,238.05,237.99,8.15478725]
[1732596629639,0.12549,238.03,237.99,8.15478725]
[1732596631141,0.25098,238.03,237.99,8.15478725]
[1732596631662,12.85089925,238.09,238.01,8.15478725]
[1732596631838,20.0,238.06,238.01,8.15478725]
[1732596632945,23.902374,238.05,238.01,8.15478725]
[1732596634460,0.12549,238.05,238.01,8.15478725]
[1732596634761,0.12549,238.06,238.01,8.15478725]
[1732596636039,0.25098,238.06,238.01,8.15478725]
[1732596637361,24.027864,238.06,238.01,8.15478725]
[1732596641046,23.776884,238.08,238.01,8.15478725]
[1732596641286,0.12549,238.07,238.03,8.15478725]
[1732596641967,0.12549,238.07,238.01,4.2014]
[1732596642173,0.12549,238.07,238.01,8.15478725]
[1732596643172,8.28027725,238.07,237.99,8.15478725]
[1732596643568,0.12549,238.05,237.99,8.15478725]
[1732596644161,0.12549,238.05,238.0,4.2016]
[1732596644588,0.12549,238.05,238.01,8.15478725]
[1732596644880,0.25098,238.05,238.01,8.15478725]
[1732596645048,0.25098,238.05,238.03,8.15478725]
[1732596646695,0.25098,238.05,238.03,12.35588725]
[1732596650884,0.25098,238.05,238.03,8.15478725]
[1732596651053,0.25098,238.05,238.01,8.15478725]
[1732596651450,0.25098,238.05,238.01,12.35618725]
[1732596654797,0.495912,238.09,238.03,8.15478725]
[1732596654969,0.495912,238.09,238.05,8.15478725]
[1732596655969,0.12549,238.08,238.05,8.15478725]
[1732596656271,23.902374,238.08,238.05,12.35548725]
[1732596658778,0.12549,238.07,238.05,8.15478725]
[1732596658983,0.12549,238.07,238.04,4.2008]
[1732596660386,0.12549,238.07,238.05,8.15478725]
[1732596662175,0.12549,238.07,238.04,4.2008]
[1732596664243,0.12549,238.07,238.05,8.15478725]
[1732596666285,0.12549,238.07,238.06,4.2006]
[1732596668294,0.12549,238.07,238.06,12.35538725]
[1732596681917,0.12549,238.07,238.05,8.15478725]
[1732596682216,0.12549,238.07,238.0,6.2406]
[1732596682217,0.12549,238.07,238.0,4.2015]
[1732596682392,0.12549,238.04,237.97,4.2022]
[1732596682593,0.12549,238.04,237.98,8.15478725]
[1732596682812,0.12549,238.04,237.97,8.15478725]
[1732596682994,8.28027725,238.04,237.97,8.15478725]
[1732596683195,23.776884,238.03,237.97,8.15478725]
[1732596683613,0.12549,238.02,237.98,8.15478725]
[1732596683822,23.776884,238.04,237.98,8.15478725]
[1732596684112,0.12549,238.03,237.98,8.15478725]
[1732596684724,0.12549,238.04,237.99,8.15478725]
[1732596684894,0.12549,238.05,237.99,8.15478725]
[1732596685095,23.902374,238.05,237.98,8.15478725]
[1732596685397,0.12549,238.05,237.99,8.15478725]
[1732596685711,0.25098,238.05,237.99,12.35658725]
[1732596685911,0.25098,238.05,238.0,8.15478725]
[1732596686510,31.93167125,238.03,237.94,4.2027]
[1732596686756,0.12549,238.0,237.89,10.5088]
[1732596686895,0.12549,237.97,237.91,8.15478725]
[1732596687623,0.12549,237.97,237.93,8.15478725]
[1732596687917,23.776884,237.99,237.93,8.15478725]
[1732596688218,0.12549,237.98,237.95,8.15478725]
[1732596688427,8.15478725,238.04,237.97,8.15478725]
[1732596688619,12.35578725,238.04,237.96,8.15478725]
[1732596688922,8.15478725,238.03,237.95,8.15478725]
[1732596689600,0.12549,238.02,237.96,8.15478725]
[1732596689907,0.12549,238.02,237.98,8.15478725]
[1732596690095,20.0,238.03,237.99,8.15478725]
[1732596690313,24.027864,238.02,237.99,8.15478725]
[1732596690524,0.12549,238.02,237.99,8.15478725]
[1732596691121,0.12549,238.03,237.99,8.15478725]
[1732596691733,0.12549,238.03,237.99,8.29304448]
[1732596693527,4.32639,238.04,237.98,8.29304448]
[1732596693730,0.12549,238.04,237.98,8.29304448]
[1732596696134,0.25098,238.04,237.99,8.29304448]
[1732596697649,0.25098,238.04,237.98,8.29304448]
[1732596698123,0.25098,238.04,237.99,8.29304448]
[1732596701832,0.12549,238.04,238.0,8.29304448]
[1732596702036,23.776884,238.06,238.0,8.29304448]
[1732596702244,0.12549,238.05,238.01,8.29304448]
[1732596702536,0.12549,238.06,238.0,8.29304448]
[1732596706232,0.25098,238.06,238.0,8.29304448]
[1732596706434,4.45158,238.06,237.99,12.49484448]
[1732596706638,0.25098,238.04,237.99,12.49484448]
[1732596707140,0.12549,238.02,237.96,8.29304448]
[1732596707341,24.027864,238.0,237.94,8.29304448]
[1732596708043,24.027864,238.0,237.9,6.4471]
[1732596708044,32.32090848,238.0,237.93,8.29304448]
[1732596708339,0.12549,237.96,237.89,12.49664448]
[1732596709128,0.25098,237.94,237.89,12.49664448]
[1732596709533,0.12549,237.95,237.9,8.29304448]
[1732596709946,0.25098,237.95,237.9,8.29304448]
[1732596710246,0.25098,237.95,237.91,8.29304448]
[1732596710750,0.25098,237.95,237.9,8.29304448]
[1732596713043,0.25098,237.95,237.87,16.2572]
[1732596713044,0.25098,237.95,237.91,8.29304448]
[1732596713748,0.25098,237.95,237.88,4.2038]
[1732596714047,0.25098,237.95,237.91,8.29304448]
[1732596714252,0.25098,237.95,237.92,8.29304448]
[1732596714628,0.25098,237.95,237.91,8.29304448]
[1732596720542,0.25098,237.95,237.92,8.29304448]
[1732596720733,23.776884,237.99,237.94,8.29304448]
[1732596721054,0.12549,237.98,237.95,8.29304448]
[1732596721262,0.12549,237.98,237.94,8.29304448]
[1732596721558,0.12549,237.98,237.93,8.29304448]
[1732596723250,0.12549,237.98,237.92,4.203]
[1732596723457,0.12549,237.98,237.92,12.49604448]
[1732596723933,0.12549,237.98,237.93,8.29304448]
[1732596724639,8.54402448,237.98,237.91,12.49614448]
[1732596724953,0.12549,237.96,237.92,8.29304448]
[1732596725160,0.25098,237.98,237.92,8.29304448]
[1732596725457,0.25098,237.98,237.93,8.29304448]
[1732596725653,0.25098,237.98,237.94,8.29304448]
[1732596726653,0.25098,237.98,237.88,14.7133]
[1732596726654,0.25098,237.98,237.96,8.29304448]
[1732596727357,0.25098,237.98,237.97,8.29304448]
[1732596729577,0.25098,237.98,237.88,14.7133]
[1732596729782,0.25098,237.98,237.95,8.29304448]
[1732596731864,0.25098,237.98,237.96,8.29304448]
[1732596732073,0.25098,237.98,237.97,8.29304448]
[1732596732568,0.12549,237.98,237.97,8.29304448]
[1732596733074,0.12549,237.98,237.94,14.7093]
[1732596733250,0.12549,237.98,237.97,8.29304448]
[1732596733753,0.25098,237.98,237.97,12.49524448]
[1732596733950,0.25098,237.98,237.96,12.49534448]
[1732596735150,0.25098,237.98,237.91,4.2032]
[1732596735359,23.776884,238.01,237.95,8.29304448]
[1732596735566,0.12549,238.01,237.97,8.29304448]
[1732596735856,0.25098,238.02,237.98,8.29304448]
[1732596736265,0.25098,238.02,237.97,8.29304448]
[1732596736779,0.25098,238.02,237.96,12.49524448]
[1732596736953,0.25098,238.02,237.97,8.29304448]
[1732596737863,0.25098,238.02,237.96,8.29304448]
[1732596738175,0.25098,238.02,237.97,8.29304448]
[1732596738373,0.25098,238.02,237.98,8.29304448]
[1732596738767,0.25098,238.02,237.97,8.29304448]
[1732596739578,0.25098,238.02,237.98,8.29304448]
[1732596739965,0.25098,238.02,237.96,4.2023]
[1732596740162,0.25098,238.02,237.96,12.49558107]
[1732596740655,8.29328107,238.0,237.89,4.2036]
[1732596740853,23.776884,237.95,237.85,4.2043]
[1732596741073,0.12549,237.92,237.82,39.0851]
[1732596741279,0.12549,237.92,237.86,8.29328107]
[1732596741483,0.25098,237.92,237.86,8.29328107]
[1732596742854,0.25098,237.92,237.86,12.49728107]
[1732596743864,0.25098,237.92,237.87,8.29328107]
[1732596744075,0.25098,237.92,237.87,12.49718107]
[1732596744278,0.25098,237.92,237.88,8.29328107]
[1732596744579,0.12549,237.93,237.87,12.49718107]
[1732596744767,0.12549,237.93,237.87,8.29328107]
[1732596745766,0.12549,237.93,237.87,12.49718107]
[1732596746574,0.12549,237.93,237.87,12.50484816]
[1732596747354,0.12549,237.93,237.86,8.30094816]
[1732596747557,8.42643816,237.91,237.85,4.2042]
[1732596747759,8.42643816,237.91,237.81,4.205]
[1732596747957,23.776884,237.9,237.83,8.30094816]
[1732596748172,0.25098,237.89,237.83,8.30094816]
[1732596748678,0.25098,237.89,237.83,12.50554816]
[1732596748890,0.12549,237.87,237.77,22.8279]
[1732596749080,0.25098,237.87,237.83,8.30094816]
[1732596749283,0.12549,237.87,237.81,8.30094816]
[1732596749584,0.12549,237.86,237.81,8.30094816]
[1732596749789,0.12549,237.86,237.82,8.30094816]
[1732596750080,0.12549,237.87,237.83,8.30094816]
[1732596750262,20.0,237.87,237.84,8.30094816]
[1732596750500,23.902374,237.86,237.84,8.30094816]
[1732596750979,23.902374,237.86,237.83,8.30094816]
[1732596751886,0.12549,237.85,237.82,8.30094816]
[1732596753277,0.12549,237.85,237.82,12.50574816]
[1732596754175,0.12549,237.85,237.82,8.30094816]
[1732596755678,0.12549,237.85,237.83,8.30094816]
[1732596756395,0.12549,237.85,237.84,8.30094816]
[1732596756887,0.12549,237.86,237.84,12.50544816]
[1732596757084,0.12549,237.86,237.85,8.30094816]
[1732596758798,0.12549,237.86,237.84,8.30094816]
[1732596758995,0.12549,237.86,237.85,8.30094816]
[1732596759300,0.12549,237.86,237.84,8.30094816]
[1732596759486,0.12549,237.86,237.85,8.30094816]
[1732596761272,20.0,237.92,237.85,4.2043]
[1732596761473,0.12549,237.92,237.86,8.30094816]
[1732596761682,0.12549,237.92,237.88,8.30094816]
[1732596761970,0.12549,237.93,237.89,8.30094816]
[1732596762288,0.12549,237.94,237.88,8.30094816]
[1732596763005,23.776884,237.93,237.87,8.30094816]
[1732596763204,0.12549,237.92,237.88,8.30094816]
[1732596764073,0.12549,237.93,237.88,8.30094816]
[1732596766398,0.25098,237.93,237.88,8.30094816]
[1732596767778,0.25098,237.93,237.87,8.30094816]
[1732596769472,0.25098,237.93,237.87,4.2039]
[1732596769791,0.12549,237.91,237.87,4.2039]
[1732596770295,0.25098,237.91,237.87,12.50484816]
[1732596770500,23.902374,237.93,237.81,14.7174]
[1732596770673,0.12549,237.92,237.85,8.30094816]
[1732596771483,23.902374,237.91,237.84,8.30094816]
[1732596771695,0.12549,237.9,237.84,8.30094816]
[1732596772801,0.12549,237.9,237.85,8.30094816]
[1732596772991,0.12549,237.9,237.84,8.30094816]
[1732596773199,0.12549,237.9,237.81,4.205]
[1732596773389,0.12549,237.9,237.84,8.30094816]
[1732596774706,0.12549,237.9,237.84,12.50534816]
[1732596775302,0.12549,237.9,237.84,4.2044]
[1732596775598,0.12549,237.9,237.84,12.50534816]
[1732596776403,0.12549,237.9,237.85,8.30094816]
[1732596776700,0.12549,237.9,237.84,8.30094816]
[1732596776910,0.12549,237.9,237.85,8.30094816]
[1732596781400,0.12549,237.9,237.81,4.205]
[1732596781606,0.12549,237.9,237.85,8.30094816]
[1732596784617,23.902374,237.9,237.8,21.7508]
[1732596784817,0.12549,237.87,237.82,8.30094816]
[1732596785015,0.12549,237.87,237.84,8.30094816]
[1732596785186,0.12549,237.87,237.85,8.30094816]
[1732596785394,0.12549,237.87,237.86,8.30094816]
[1732596786295,0.12549,237.87,237.86,12.50504816]
[1732596787711,0.12549,237.87,237.84,8.30094816]
[1732596788698,0.12549,237.87,237.84,12.50534816]
[1732596790118,0.12549,237.87,237.83,8.30094816]
[1732596790823,0.12549,237.87,237.78,4.2055]
[1732596791197,0.12549,237.87,237.83,12.50554816]
[1732596791402,23.902374,237.87,237.78,4.2055]
[1732596791743,0.12549,237.86,237.79,8.30094816]
[1732596792108,0.12549,237.86,237.8,8.30094816]
[1732596793014,0.12549,237.86,237.8,12.50604816]
[1732596793606,0.12549,237.86,237.81,8.30094816]
[1732596794122,0.12549,237.84,237.76,4.2059]
[1732596794429,0.12549,237.84,237.79,8.30094816]
[1732596794430,0.25098,237.84,237.79,8.30094816]
[1732596794729,23.902374,237.82,237.77,8.30094816]
[1732596794896,0.12549,237.81,237.77,8.30094816]
[1732596795616,0.12549,237.82,237.77,8.30094816]
[1732596796400,0.12549,237.82,237.76,8.30094816]
[1732596796723,0.12549,237.75,237.68,12.50814816]
[1732596796924,0.12549,237.72,237.66,12.50844816]
[1732596797110,0.12549,237.7,237.66,12.50844816]
[1732596797298,0.12549,237.7,237.62,4.2082]
[1732596797497,10.0,237.78,237.6,4.2086]
[1732596797498,8.55192816,237.68,237.6,4.2086]
[1732596797795,0.25098,237.62,237.57,8.30094816]
[1732596798324,0.25098,237.62,237.54,4.2098]
[1732596798820,0.25098,237.62,237.57,8.30094816]
[1732596799120,0.25098,237.62,237.56,8.30094816]
[1732596799357,0.25098,237.62,237.57,8.30094816]
[1732596800706,0.25098,237.62,237.6,8.30094816]
[1732596801007,23.776884,237.62,237.53,20.0]
[1732596801208,8.42643816,237.61,237.54,8.30094816]
[1732596801399,23.776884,237.62,237.51,4.2103]
[1732596801717,0.12549,237.61,237.51,4.2103]
[1732596801897,23.776884,237.58,237.51,12.51124816]
[1732596802100,0.12549,237.57,237.5,8.30094816]
[1732596802316,0.12549,237.57,237.51,8.30094816]
[1732596802497,0.12549,237.57,237.5,8.30094816]
[1732596802708,0.12549,237.57,237.51,8.30094816]
[1732596803329,0.12549,237.57,237.52,8.30094816]
[1732596803714,32.07783216,237.57,237.46,4.2112]
[1732596803913,23.902374,237.56,237.49,8.30094816]
[1732596804104,23.902374,237.56,237.51,8.30094816]
[1732596804431,0.12549,237.56,237.5,8.30094816]
[1732596804731,0.25098,237.57,237.51,8.30094816]
[1732596805543,0.12549,237.58,237.52,8.30094816]
[1732596806923,8.42643816,237.58,237.46,4.2112]
[1732596807131,23.776884,237.57,237.51,8.30094816]
[1732596807336,0.12549,237.56,237.46,4.2112]
[1732596807634,0.12549,237.54,237.46,4.2112]
[1732596807925,0.12549,237.54,237.48,8.30094816]
[1732596808129,0.12549,237.54,237.49,8.30094816]
[1732596808953,0.12549,237.54,237.5,8.30094816]
[1732596809244,0.25098,237.54,237.43,4.2117]
[1732596809410,0.12549,237.52,237.43,4.2117]
[1732596809608,0.12549,237.49,237.43,12.51264816]
[1732596810038,0.12549,237.48,237.43,12.51264816]
[1732596810426,0.12549,237.48,237.44,8.30094816]
[1732596810737,0.25098,237.49,237.44,8.30094816]
[1732596811633,23.902374,237.51,237.44,12.51244816]
[1732596811816,0.12549,237.5,237.44,12.51244816]
[1732596812217,23.902374,237.52,237.46,8.30094816]
[1732596812523,0.12549,237.51,237.46,8.30094816]
[1732596812840,0.12549,237.51,237.45,8.30094816]
[1732596813406,0.12549,237.51,237.44,8.30094816]
[1732596814035,23.776884,237.5,237.44,8.30094816]
[1732596814633,0.12549,237.49,237.44,8.30094816]
[1732596815331,0.12549,237.49,237.42,11.70093679]
[1732596815332,0.12549,237.49,237.46,8.30094816]
[1732596815944,0.12549,237.49,237.45,8.30094816]
[1732596816232,0.12549,237.5,237.45,8.30094816]
[1732596816527,0.12549,237.5,237.44,8.30094816]
[1732596817136,8.42643816,237.5,237.43,4.2117]
[1732596817340,23.776884,237.49,237.43,4.2117]
[1732596817522,0.25098,237.48,237.43,4.2117]
[1732596819008,0.25098,237.48,237.42,20.00198495]
[1732596819227,0.25098,237.48,237.43,8.30094816]
[1732596819544,0.25098,237.48,237.42,20.00198495]
[1732596820428,23.776884,237.49,237.42,7.48913679]
[1732596820429,0.12549,237.43,237.42,7.48913679]
[1732596826232,13.902374,237.45,237.42,7.48913679]
[1732596827149,8.30094816,237.54,237.44,8.30094816]
[1732596827353,22.6796,237.55,237.49,8.30094816]
[1732596827641,0.12549,237.54,237.49,8.30094816]
[1732596827847,0.12549,237.54,237.48,8.30094816]
[1732596828518,23.776884,237.54,237.48,8.30094816]
[1732596828723,27.986784,237.54,237.42,11.70093679]
[1732596828943,0.12549,237.53,237.48,8.30094816]
[1732596829450,18.80468995,237.58,237.51,8.30094816]
[1732596829623,10.50374179,237.58,237.54,8.30094816]
[1732596829824,10.00374179,237.58,237.54,8.30094816]
[1732596830144,0.12549,237.57,237.5,8.30094816]
[1732596830532,0.12549,237.57,237.51,8.30094816]
[1732596830952,0.12549,237.57,237.42,22.23073679]
[1732596830953,23.902374,237.57,237.5,8.30094816]
[1732596831134,23.902374,237.57,237.51,8.30094816]
[1732596832020,10.00374179,237.58,237.56,8.30094816]
[1732596832225,10.00374179,237.58,237.57,8.30094816]
[1732596833831,10.00374179,237.58,237.57,12.51014816]
[1732596834453,10.00374179,237.58,237.57,17.20742428]
[1732596835348,10.00374179,237.58,237.55,4.2095]
[1732596835532,0.12549,237.57,237.55,12.99822428]
[1732596835730,0.12549,237.57,237.56,12.99822428]
[1732596837079,10.00374179,237.58,237.57,4.2092]
[1732596837257,10.00374179,237.58,237.57,17.20742428]
[1732596838443,10.12923179,237.58,237.57,12.99822428]
[1732596839454,10.00374179,237.58,237.57,12.99822428]
[1732596840034,12.99822428,237.75,237.6,20.0]
[1732596840234,17.20392428,237.77,237.69,12.99822428]
[1732596840459,12.99822428,237.76,237.69,12.99822428]
[1732596840666,17.20392428,237.77,237.7,12.99822428]
[1732596841039,12.99822428,237.73,237.62,4.2083]
[1732596841365,12.99822428,237.73,237.65,12.99822428]
[1732596841737,12.99822428,237.73,237.66,12.99822428]
[1732596841957,36.77510828,237.69,237.62,12.99822428]
[1732596842162,23.776884,237.7,237.63,12.99822428]
[1732596843252,0.12549,237.69,237.63,12.99822428]
[1732596844045,0.12549,237.69,237.64,12.99822428]
[1732596844452,23.902374,237.69,237.64,12.99822428]
[1732596846151,23.902374,237.69,237.62,12.99822428]
[1732596847258,23.902374,237.69,237.62,17.20652428]
[1732596848456,23.902374,237.69,237.62,12.99822428]
[1732596848640,28.109574,237.69,237.6,12.99822428]
[1732596849459,23.776884,237.67,237.6,12.99822428]
[1732596849762,23.776884,237.67,237.6,17.20692428]
[1732596850060,23.776884,237.68,237.62,12.99822428]
[1732596850262,23.776884,237.69,237.62,12.99822428]
[1732596850644,23.776884,237.67,237.6,17.20692428]
[1732596852968,0.12549,237.66,237.6,17.20692428]
[1732596853752,12.99822428,237.64,237.57,4.2092]
[1732596854168,4.2077,237.66,237.54,12.99822428]
[1732596854169,23.776884,237.61,237.54,12.99822428]
[1732596855256,27.985484,237.61,237.54,12.99822428]
[1732596856167,23.776884,237.59,237.52,12.99822428]
[1732596856461,0.12549,237.58,237.52,12.99822428]
[1732596857770,0.12549,237.56,237.5,12.99822428]
[1732596859397,0.12549,237.54,237.48,17.20892428]
[1732596860649,13.12371428,237.54,237.47,12.99822428]
[1732596860849,23.776884,237.53,237.47,12.99822428]
[1732596861073,36.77510828,237.55,237.47,12.99822428]
[1732596861277,36.77510828,237.55,237.49,12.99822428]
[1732596861278,23.776884,237.55,237.49,12.99822428]
[1732596861461,29.63342428,237.59,237.51,12.99822428]
[1732596861654,33.84232428,237.59,237.51,12.99822428]
[1732596861859,12.99822428,237.57,237.5,12.99822428]
[1732596862377,0.12549,237.56,237.5,12.99822428]
[1732596862670,0.12549,237.56,237.49,12.99822428]
[1732596862976,23.902374,237.56,237.5,4.2105]
[1732596863373,0.12549,237.57,237.52,12.99822428]
[1732596863883,0.12549,237.57,237.5,4.2105]
[1732596864066,0.12549,237.57,237.51,12.99822428]
[1732596864777,0.12549,237.57,237.5,4.2105]
[1732596864975,0.12549,237.57,237.51,17.20842428]
[1732596867975,0.12549,237.57,237.51,4.2102]
[1732596868165,0.12549,237.57,237.52,12.99822428]
[1732596869472,0.12549,237.57,237.52,17.20832428]
[1732596870086,16.0757,237.64,237.56,12.99822428]
[1732596870267,8.32259401,237.62,237.55,8.32259401]
[1732596870591,20.2838,237.64,237.52,14.7355]
[1732596870592,20.2838,237.64,237.52,4.2101]
[1732596870966,8.32259401,237.59,237.52,12.53269401]
[1732596871167,23.776884,237.58,237.52,12.53269401]
[1732596872763,23.776884,237.59,237.52,12.53269401]
[1732596872964,23.776884,237.59,237.53,8.32259401]
[1732596873363,0.12549,237.58,237.53,8.32259401]
[1732596874489,0.12549,237.58,237.52,8.32259401]
[1732596874787,28.60639401,237.64,237.57,8.32259401]
[1732596874996,0.12549,237.62,237.56,8.32259401]
[1732596875691,0.12549,237.62,237.55,8.32259401]
[1732596875981,0.12549,237.6,237.55,4.2095]
[1732596879789,0.12549,237.6,237.56,8.32259401]
[1732596879984,23.776884,237.63,237.56,8.32259401]
[1732596880666,8.32259401,237.59,237.48,10.5268]
[1732596880866,23.776884,237.58,237.51,8.32259401]
[1732596881286,27.985984,237.58,237.51,12.53289401]
[1732596881586,36.30857801,237.58,237.51,12.53289401]
[1732596881786,32.09947801,237.58,237.51,12.53289401]
[1732596882097,23.776884,237.58,237.51,12.53289401]
[1732596882965,23.776884,237.58,237.52,8.32259401]
[1732596883368,23.776884,237.59,237.52,8.32259401]
[1732596883568,0.12549,237.58,237.52,8.32259401]
[1732596884880,0.12549,237.58,237.52,4.2101]
[1732596887374,8.44808401,237.58,237.52,4.2101]
[1732596887586,23.776884,237.57,237.52,4.2101]
[1732596890502,8.32259401,237.53,237.46,4.2112]
[1732596890792,32.09947801,237.5,237.41,4.2121]
[1732596890991,8.32259401,237.5,237.43,8.32259401]
[1732596891194,23.902374,237.49,237.43,8.32259401]
[1732596891370,32.22496801,237.49,237.42,8.32259401]
[1732596891773,23.902374,237.49,237.43,8.32259401]
[1732596891985,0.12549,237.47,237.37,4.2128]
[1732596892187,8.32259401,237.47,237.4,8.32259401]
[1732596892394,8.44808401,237.48,237.41,12.53469401]
[1732596892587,23.776884,237.47,237.41,12.53469401]
[1732596893596,23.902374,237.48,237.42,8.32259401]
[1732596893896,32.22496801,237.48,237.41,8.32259401]
[1732596894419,8.44808401,237.48,237.4,8.32259401]
[1732596894595,23.776884,237.47,237.41,12.53459401]
[1732596894901,23.776884,237.47,237.41,8.32259401]
[1732596895784,23.776884,237.45,237.37,4.2128]
[1732596896006,8.32259401,237.43,237.37,4.2128]
[1732596896189,8.32259401,237.44,237.37,8.32259401]
[1732596897591,32.09947801,237.45,237.38,8.32259401]
[1732596898282,0.12549,237.44,237.39,4.2124]
[1732596900726,10.50739468,237.51,237.39,8.32259401]
[1732596900915,23.776884,237.47,237.42,8.32259401]
[1732596901205,8.32259401,237.46,237.39,8.32259401]
[1732596901500,23.902374,237.44,237.37,8.32259401]
[1732596901886,23.902374,237.44,237.38,8.32259401]
[1732596902711,23.776884,237.45,237.39,8.32259401]
[1732596903202,23.776884,237.45,237.4,8.32259401]
[1732596903597,23.776884,237.48,237.42,8.32259401]
[1732596904511,23.776884,237.48,237.41,8.32259401]
[1732596905509,23.776884,237.48,237.42,4.2119]
[1732596905703,23.776884,237.49,237.42,12.53449401]
[1732596905905,32.09947801,237.49,237.42,12.53449401]
[1732596906993,0.12549,237.48,237.41,8.32259401]
[1732596907312,8.44808401,237.48,237.41,8.32259401]
[1732596907497,23.776884,237.47,237.41,8.32259401]
[1732596908112,23.776884,237.47,237.41,12.53449401]
[1732596909598,23.776884,237.47,237.41,4.2119]
[1732596909802,8.32259401,237.46,237.39,12.53489401]
[1732596910116,8.32259401,237.46,237.39,4.2123]
[1732596910409,8.32259401,237.46,237.28,20.0]
[1732596910410,0.12549,237.39,237.3,21.7073]
[1732596910614,8.32259401,237.37,237.31,4.2138]
[1732596910812,23.902374,237.36,237.31,4.2138]
[1732596910991,32.22496801,237.36,237.3,15.6965]
[1732596911320,32.22496801,237.36,237.3,19.9105]
[1732596911896,23.776884,237.39,237.32,8.32259401]
[1732596912218,15.5332,237.43,237.36,8.32259401]
[1732596912507,23.776884,237.43,237.37,8.32259401]
[1732596913006,0.12549,237.42,237.37,8.32259401]
[1732596913510,23.776884,237.43,237.37,12.53529401]
[1732596913812,23.776884,237.45,237.38,8.32259401]
[1732596914009,0.12549,237.44,237.38,8.32259401]
[1732596914600,0.12549,237.44,237.37,12.53529401]
[1732596915714,8.44808401,237.44,237.37,4.2127]
[1732596916141,23.776884,237.43,237.37,4.2127]
[1732596916420,23.776884,237.43,237.37,12.53529401]
[1732596916732,32.22496801,237.44,237.37,4.2127]
[1732596916909,23.902374,237.44,237.37,8.32259401]